bitfinex/quotes_SOLUSD_20220228
["timestamp","ask_amount","ask_price","bid_price","bid_amount"]
[1646089143765,112.7,99.007,98.78,0.95]
[1646089143966,112.7,99.007,98.8,0.95]
[1646089144166,112.7,99.007,98.801,157.03]
[1646089144365,112.7,99.007,98.803,157.03]
[1646089144568,112.7,99.007,98.804,2.7405426]
[1646089144766,112.7,99.007,98.81,0.95]
[1646089145366,112.7,99.007,98.812,97.7]
[1646089145568,112.7,99.007,98.82,0.95]
[1646089145765,17.85809502,99.045,98.82,0.95]
[1646089145965,186.6,99.057,98.83,0.95]
[1646089146166,186.6,99.057,98.84,0.95]
[1646089146467,112.7,99.007,98.832,2.8223826]
[1646089146866,13.61866672,99.006,98.825,72.4844]
[1646089147070,18.53153784,99.006,98.826,2.47570156]
[1646089147267,31.47676174,99.006,98.829,97.7]
[1646089147568,15.18885023,99.005,98.852,59.33]
[1646089147768,15.18885023,99.005,98.853,2.75979556]
[1646089148368,17.85809502,99.004,98.858,59.33]
[1646089148570,13.10733339,99.02,98.868,59.33]
[1646089148770,17.85809502,99.017,98.872,59.33]
[1646089148969,15.18885023,99.014,98.873,2.47589702]
[1646089149469,17.85809502,99.013,98.873,2.47589702]
[1646089149675,17.85809502,99.013,98.882,59.33]
[1646089149868,17.85809502,99.013,98.883,2.54598805]
[1646089150373,17.85809502,99.013,98.847,3.05286636]
[1646089150569,33.04694525,99.013,98.847,3.05286636]
[1646089150771,4.91287112,99.012,98.847,3.05286636]
[1646089150970,4.91287112,99.012,98.858,59.33]
[1646089151169,30.96542841,99.011,98.862,59.33]
[1646089151371,30.96542841,99.011,98.863,3.07141731]
[1646089151573,15.18885023,99.01,98.847,59.33]
[1646089151872,37.89308125,99.01,98.848,2.99329199]
[1646089152071,15.18885023,99.01,98.848,2.99329199]
[1646089152274,15.18885023,99.009,98.848,2.99329199]
[1646089152473,37.89308125,99.009,98.848,2.99329199]
[1646089152675,15.18885023,99.009,98.848,2.99329199]
[1646089152875,90.23017467,99.008,98.73,5.72]
[1646089153073,59.33,99.005,98.763,47.6513]
[1646089153285,5.0,98.948,98.763,47.6513]
[1646089153479,5.0,98.928,98.743,97.7186]
[1646089153679,5.0,98.928,98.743,24.8405]
[1646089154075,114.86391469,98.927,98.743,24.8405]
[1646089154275,157.03,98.917,98.743,24.8405]
[1646089154477,5.0,98.877,98.743,24.8405]
[1646089154777,5.0,98.897,98.743,24.8405]
[1646089155074,18.38916656,98.879,98.743,24.8405]
[1646089155273,14.70192995,98.894,98.743,24.8405]
[1646089155777,17.85809502,98.893,98.743,24.8405]
[1646089155974,5.0,98.887,98.743,24.8405]
[1646089156176,5.0,98.867,98.743,24.8405]
[1646089156574,17.85809502,98.866,98.743,24.8405]
[1646089156775,32.56002497,98.866,98.743,24.8405]
[1646089156976,14.70192995,98.865,98.743,24.8405]
[1646089157379,17.85809502,98.864,98.743,24.8405]
[1646089157781,14.70192995,98.886,98.743,24.8405]
[1646089158177,17.85809502,98.885,98.743,24.8405]
[1646089158376,14.70192995,98.886,98.743,24.8405]
[1646089158577,14.56809421,98.884,98.743,24.8405]
[1646089158878,16.78449895,98.884,98.743,24.8405]
[1646089159177,14.70192995,98.883,98.71,70.5478]
[1646089159381,33.09109651,98.883,98.71,70.5478]
[1646089159881,14.56809421,98.882,98.71,70.5478]
[1646089160079,18.38916656,98.882,98.71,70.5478]
[1646089160278,18.98996864,98.892,98.71,70.5478]
[1646089160479,14.56809421,98.886,98.71,70.5478]
[1646089160682,5.0,98.877,98.71,70.5478]
[1646089160880,14.56809421,98.886,98.71,70.5478]
[1646089161081,14.70192995,98.876,98.71,70.5478]
[1646089161784,5.0,98.857,98.71,70.5478]
[1646089161987,5.0,98.847,98.71,70.5478]
[1646089162184,5.0,98.837,98.71,70.5478]
[1646089162386,5.0,98.837,98.611,5.27369231]
[1646089162387,97.7,98.836,98.619,59.33]
[1646089162585,5.0,98.807,98.619,59.33]
[1646089162784,5.0,98.807,98.62,70.5998]
[1646089162985,14.70192995,98.806,98.62,70.5998]
[1646089163211,33.69189859,98.806,98.62,70.5998]
[1646089163388,5.0,98.797,98.62,70.5998]
[1646089163586,5.0,98.787,98.62,70.5998]
[1646089163786,18.38916656,98.796,98.62,70.5998]
[1646089163986,33.09109651,98.796,98.62,70.5998]
[1646089164286,5.0,98.777,98.62,70.5998]
[1646089164687,14.70192995,98.776,98.62,70.5998]
[1646089164889,33.09109651,98.776,98.62,70.5998]
[1646089165089,18.38916656,98.776,98.62,70.5998]
[1646089165287,5.0,98.777,98.62,70.5998]
[1646089165487,5.0,98.767,98.62,70.5998]
[1646089165691,5.0,98.747,98.651,14.96304136]
[1646089165888,5.0,98.747,98.651,4.136e-05]
[1646089166089,14.70192995,98.746,98.651,4.136e-05]
[1646089166487,5.0,98.747,98.651,4.136e-05]
[1646089166688,32.56002497,98.746,98.651,4.136e-05]
[1646089167188,17.85809502,98.746,98.651,4.136e-05]
[1646089167790,14.56809421,98.745,98.651,4.136e-05]
[1646089168591,18.38916656,98.744,98.651,4.136e-05]
[1646089168992,12.57296013,98.743,98.651,4.136e-05]
[1646089169592,18.38916656,98.742,98.651,4.136e-05]
[1646089169995,15.76641487,98.761,98.651,4.136e-05]
[1646089170193,18.38916656,98.761,98.651,4.136e-05]
[1646089170594,12.57296013,98.776,98.651,4.136e-05]
[1646089170998,17.85809502,98.775,98.651,4.136e-05]
[1646089171597,2.92088015,98.774,98.651,4.136e-05]
[1646089171997,15.76641487,98.773,98.651,4.136e-05]
[1646089172196,33.62450989,98.773,98.651,4.136e-05]
[1646089172599,18.68729502,98.772,98.651,4.136e-05]
[1646089172795,36.54539004,98.772,98.651,4.136e-05]
[1646089172996,12.57296013,98.771,98.651,4.136e-05]
[1646089173199,15.49384028,98.771,98.651,4.136e-05]
[1646089173397,5.0,98.757,98.651,4.136e-05]
[1646089173598,15.76641487,98.77,98.651,4.136e-05]
[1646089173797,17.85809502,98.756,98.651,4.136e-05]
[1646089173997,36.54539004,98.756,98.651,4.136e-05]
[1646089174198,15.76641487,98.755,98.651,4.136e-05]
[1646089174397,18.68729502,98.755,98.651,4.136e-05]
[1646089174599,17.85809502,98.754,98.651,4.136e-05]
[1646089174898,33.62450989,98.754,98.651,4.136e-05]
[1646089175105,18.68729502,98.753,98.651,4.136e-05]
[1646089175502,33.62450989,98.752,98.651,4.136e-05]
[1646089175799,15.76641487,98.751,98.651,4.136e-05]
[1646089176302,2.92088015,98.75,98.651,4.136e-05]
[1646089176701,33.62450989,98.749,98.651,4.136e-05]
[1646089177101,15.76641487,98.748,98.651,4.136e-05]
[1646089177300,36.54539004,98.748,98.651,4.136e-05]
[1646089177704,15.76641487,98.747,98.651,4.136e-05]
[1646089177901,36.54539004,98.747,98.651,4.136e-05]
[1646089178102,15.76641487,98.747,98.651,4.136e-05]
[1646089178307,15.76641487,98.746,98.651,4.136e-05]
[1646089178501,37.07646158,98.746,98.651,4.136e-05]
[1646089178802,5.0,98.767,98.651,4.136e-05]
[1646089178803,13.05527947,98.766,98.651,4.136e-05]
[1646089179001,18.38916656,98.745,98.651,4.136e-05]
[1646089179403,5.0,98.737,98.651,4.136e-05]
[1646089179603,19.61557248,98.744,98.651,4.136e-05]
[1646089179805,14.08577487,98.736,98.651,4.136e-05]
[1646089180209,5.52979761,98.735,98.651,4.136e-05]
[1646089180605,14.08577487,98.734,98.651,4.136e-05]
[1646089181209,18.38916656,98.733,98.651,4.136e-05]
[1646089181805,14.08577487,98.732,98.651,4.136e-05]
[1646089182605,17.85809502,98.731,98.651,4.136e-05]
[1646089183204,97.7,98.729,98.651,4.136e-05]
[1646089183406,14.08577487,98.73,98.651,4.136e-05]
[1646089183605,14.08577487,98.728,98.651,4.136e-05]
[1646089183810,162.03,98.727,98.651,4.136e-05]
[1646089184010,167.55979761,98.727,98.651,4.136e-05]
[1646089184208,14.08577487,98.726,98.651,4.136e-05]
[1646089184408,19.61557248,98.726,98.651,4.136e-05]
[1646089184609,23.91896417,98.725,98.651,4.136e-05]
[1646089184810,38.00473904,98.725,98.651,4.136e-05]
[1646089185007,14.08577487,98.724,98.651,4.136e-05]
[1646089185209,97.7,98.723,98.651,4.136e-05]
[1646089185412,17.85809502,98.723,98.651,4.136e-05]
[1646089185610,31.94386989,98.723,98.651,4.136e-05]
[1646089185825,14.08577487,98.723,98.651,4.136e-05]
[1646089186027,31.94386989,98.723,98.651,4.136e-05]
[1646089186227,11.05959522,98.722,98.651,4.136e-05]
[1646089186428,5.0,98.717,98.651,4.136e-05]
[1646089186827,14.08577487,98.716,98.651,4.136e-05]
[1646089187028,32.47494143,98.716,98.651,4.136e-05]
[1646089187228,59.33,98.715,98.651,4.136e-05]
[1646089187435,97.7,98.714,98.564,15.2778]
[1646089187629,59.33,98.706,98.564,15.2778]
[1646089187830,64.33,98.683,98.564,15.2778]
[1646089188031,59.33,98.646,98.564,15.2778]
[1646089188228,97.7,98.626,98.428,152.0946]
[1646089188429,59.33,98.613,98.524,15.8392025]
[1646089188629,15.21244153,98.645,98.524,0.5464025]
[1646089188630,97.7,98.606,98.524,0.5464025]
[1646089188930,97.7,98.611,98.429,59.33]
[1646089189131,15.21244153,98.605,98.394,26.50827413]
[1646089189331,15.21244153,98.605,98.375,15.2056]
[1646089189332,3.92199,98.603,98.375,15.2056]
[1646089189532,5.0,98.587,98.375,15.2056]
[1646089189734,5.0,98.587,98.35,77.0796]
[1646089190031,5.0,98.537,98.35,77.0796]
[1646089190230,59.33,98.573,98.35,77.0796]
[1646089190231,5.0,98.527,98.35,77.0796]
[1646089190635,5.0,98.517,98.282,10.54724154]
[1646089190832,5.0,98.517,98.268,14.9274]
[1646089191038,5.0,98.507,98.268,14.9274]
[1646089191234,5.0,98.457,98.268,14.9274]
[1646089191633,5.52979761,98.456,98.216,74.411]
[1646089191833,5.0,98.447,98.216,89.2794]
[1646089192233,5.0,98.437,98.216,89.2794]
[1646089192433,5.0,98.426,98.217,95.6341]
[1646089192633,5.0,98.426,98.218,113.3447]
[1646089192836,5.0,98.416,98.218,112.35300047]
[1646089193042,5.0,98.406,98.218,111.85300047]
[1646089193243,5.0,98.396,98.218,111.85300047]
[1646089193434,8.92199,98.396,98.217,24.3573]
[1646089193636,5.0,98.366,98.096,15.0347]
[1646089193841,3.92199,98.365,98.021,20.85903591]
[1646089194036,5.0,98.356,98.17,0.23]
[1646089194235,5.0,98.326,98.17,0.23]
[1646089194441,5.0,98.316,98.17,0.23]
[1646089194634,5.0,98.296,98.17,0.23]
[1646089195035,5.0,98.276,98.17,0.23]
[1646089195635,5.0,98.266,98.17,15.3653]
[1646089196037,8.93204501,98.275,98.17,15.3653]
[1646089196235,73.91533323,98.498,98.17,15.3653]
[1646089196236,5.0,98.306,98.17,0.23]
[1646089196637,2.82,98.316,98.17,0.23]
[1646089196837,5.0,98.356,98.17,0.23]
[1646089197238,5.0,98.376,98.171,2.74678921]
[1646089197635,5.0,98.386,98.171,2.74678921]
[1646089197835,5.0,98.386,98.172,12.96999997]
[1646089198036,5.0,98.396,98.172,12.96999997]
[1646089198236,5.0,98.406,98.171,2.74678921]
[1646089198440,18.14334772,98.385,98.173,2.74678921]
[1646089198636,5.0,98.396,98.173,2.74678921]
[1646089198835,32.2,98.464,98.173,2.74678921]
[1646089198836,5.0,98.457,98.174,28.64852]
[1646089199037,5.0,98.447,98.176,59.33]
[1646089199336,10.55324683,98.482,98.178,59.33]
[1646089199540,10.62629061,98.507,98.178,59.33]
[1646089199541,10.62629061,98.507,98.209,7.0]
[1646089199837,10.62629061,98.507,98.191,0.31430391]
[1646089199838,10.62629061,98.507,98.241,3.92]
[1646089200037,10.62629061,98.507,98.243,101.68302]
[1646089200239,10.62629061,98.507,98.244,59.33]
[1646089200438,10.62629061,98.507,98.246,3.9829]
[1646089200638,5.0,98.607,98.247,55.0]
[1646089200839,5.0,98.587,98.294,7.0]
[1646089201043,0.008469,98.515,98.296,3.98087]
[1646089201340,10.55489208,98.622,98.297,59.33]
[1646089201541,5.0,98.647,98.299,3.98075]
[1646089201846,10.54687796,98.623,98.361,3.92]
[1646089202051,10.54687796,98.623,98.301,97.7]
[1646089202238,10.54687796,98.623,98.302,59.33]
[1646089202538,13.32022753,98.601,98.362,48.00203643]
[1646089202738,13.32022753,98.573,98.303,50.24298906]
[1646089202939,5.0,98.597,98.349,25.51946184]
[1646089203138,5.0,98.577,98.349,25.51946184]
[1646089203339,10.54687796,98.623,98.349,25.51946184]
[1646089203340,18.09900161,98.611,98.349,25.51946184]
[1646089203544,18.09900161,98.611,98.35,87.32776574]
[1646089203740,11.98902753,98.613,98.35,146.65776574]
[1646089203943,5.0,98.647,98.351,129.74091217]
[1646089204142,5.0,98.607,98.352,59.33]
[1646089204343,2.579,98.628,98.352,200.52952217]
[1646089204540,2.579,98.628,98.354,59.33]
[1646089204741,2.579,98.628,98.355,3.97848]
[1646089204944,2.579,98.628,98.356,59.33]
[1646089205144,2.579,98.628,98.363,32.2]
[1646089205342,0.009,98.628,98.365,63.30808]
[1646089205546,0.009,98.628,98.367,97.7]
[1646089205747,5.0,98.727,98.416,0.3047424]
[1646089206045,5.0,98.777,98.431,3.97541]
[1646089206445,5.0,98.797,98.461,0.31920067]
[1646089206643,19.76895365,98.801,98.475,3.97364]
[1646089206843,16.47830793,98.817,98.477,97.7]
[1646089207045,16.47830793,98.817,98.488,3.97311]
[1646089207244,19.76895365,98.832,98.504,7.0]
[1646089207446,19.58713745,98.855,98.514,3.97206]
[1646089207646,5.0,98.877,98.515,47.436]
[1646089207845,19.76895365,98.874,98.557,0.32395187]
[1646089208044,21.16216644,98.892,98.56,32.2]
[1646089208246,13.13979068,98.895,98.562,59.33]
[1646089208445,13.13979068,98.909,98.563,101.67009]
[1646089208649,5.0,98.877,98.61,3.92]
[1646089208846,37.63801724,98.891,98.61,3.92]
[1646089209046,5.0,98.867,98.59,13.02981338]
[1646089209447,13.13979068,98.866,98.588,15.1657]
[1646089209648,32.90874433,98.866,98.589,59.33]
[1646089209848,5.0,98.897,98.591,2.74678921]
[1646089210050,1.39306945,98.92,98.591,2.74678921]
[1646089210051,112.7,98.88,98.593,63.29888]
[1646089210251,13.13979068,98.904,98.594,22.929]
[1646089210452,1.39306945,98.954,98.65,3.92]
[1646089210654,5.0,98.958,98.608,97.7]
[1646089210857,13.13979068,98.956,98.651,27.84294613]
[1646089211056,13.13979068,98.956,98.653,97.7]
[1646089211256,13.13979068,98.956,98.652,62.07678921]
[1646089211452,16.54161688,98.955,98.652,2.74678921]
[1646089211655,16.54161688,98.955,98.652,18.22738921]
[1646089211855,5.0,98.938,98.652,18.22738921]
[1646089212052,5.0,98.918,98.652,2.74678921]
[1646089212254,5.0,98.918,98.65,76.3171]
[1646089212452,29.68140756,98.917,98.65,76.3171]
[1646089212853,5.0,98.887,98.65,76.3171]
[1646089213052,5.0,98.907,98.65,76.3171]
[1646089213257,0.50830047,98.846,98.65,76.3171]
[1646089213452,0.50830047,98.846,98.652,97.7]
[1646089213651,0.50830047,98.846,98.651,24.8689]
[1646089213652,0.50830047,98.846,98.653,59.33]
[1646089213856,0.00830047,98.846,98.653,98.98299872]
[1646089214052,112.7,98.955,98.655,59.33]
[1646089214254,1.39306945,98.983,98.666,3.96594]
[1646089214453,13.37543735,98.994,98.657,59.33]
[1646089214652,13.37543735,99.02,98.73,3.92]
[1646089214853,13.37543735,99.02,98.668,98.01216847]
[1646089215053,13.37543735,99.02,98.731,39.41735205]
[1646089215254,13.37543735,99.02,98.732,97.7]
[1646089215455,13.38930401,99.046,98.733,59.33]
[1646089215655,19.7056447,99.059,98.733,83.20639613]
[1646089215855,16.54161688,99.075,98.82,3.92]
[1646089216053,16.54161688,99.075,98.736,100.4207]
[1646089216252,3.92199,99.074,98.788,23.87639613]
[1646089216456,112.7,99.072,98.821,2.74678921]
[1646089216657,5.0,99.048,98.789,174.1022]
[1646089216855,5.0,99.038,98.789,176.84898921]
[1646089217354,5.0,99.008,98.789,174.1022]
[1646089217654,5.0,98.998,98.789,174.1022]
[1646089217855,3.92199,98.997,98.789,174.1022]
[1646089218153,5.0,98.978,98.789,94.1344]
[1646089218355,4.65,98.948,98.789,22.5599]
[1646089218755,12.52263735,98.947,98.789,22.5599]
[1646089218958,16.44462735,98.947,98.789,22.5599]
[1646089219156,17.1056447,98.946,98.789,22.5599]
[1646089219356,12.52263735,98.966,98.789,22.5599]
[1646089219759,12.52263735,98.99,98.789,22.5599]
[1646089219958,4.09,99.008,98.789,22.5599]
[1646089220158,12.52263735,99.019,98.79,2.74678921]
[1646089220359,5.0,99.008,98.79,2.74678921]
[1646089220558,18.4056447,99.034,98.789,21.73968921]
[1646089220766,12.52263735,99.045,98.789,21.73968921]
[1646089220963,12.52263735,99.045,98.79,26.69948921]
[1646089220964,112.7,98.998,98.79,26.69948921]
[1646089221164,112.7,98.998,98.79,91.02948921]
[1646089221365,10.56236332,99.051,98.81,5.0]
[1646089221569,10.56236332,99.051,98.82,5.0]
[1646089221768,5.0,99.078,98.811,2.74678921]
[1646089221965,18.4056447,99.07,98.821,2.74678921]
[1646089222164,18.4056447,99.07,98.821,8.34678921]
[1646089222665,5.0,99.068,98.821,5.6]
[1646089222866,112.7,99.034,98.821,5.6]
[1646089223067,2.74678921,99.069,98.822,27.92318534]
[1646089223268,10.55716572,99.124,98.84,5.0]
[1646089223467,2.74678921,99.107,98.86,5.0]
[1646089223667,2.74678921,99.107,98.871,97.7]
[1646089223871,1.74678921,99.107,98.89,5.0]
[1646089224070,1.74678921,99.107,98.91,5.0]
[1646089224270,1.74678921,99.107,98.891,2.74678921]
[1646089224470,17.84161688,99.137,98.891,2.74678921]
[1646089224668,5.0,99.158,98.911,2.74678921]
[1646089224870,11.56930401,99.155,98.911,2.74678921]
[1646089225170,3.92199,99.154,98.911,2.74678921]
[1646089225371,5.0,99.148,98.911,2.74678921]
[1646089225571,3.92199,99.147,98.891,45.6452]
[1646089225869,15.49129401,99.147,98.892,2.74678921]
[1646089226070,18.4056447,99.146,98.892,2.74678921]
[1646089226471,3.92199,99.147,98.892,2.74678921]
[1646089226679,11.56930401,99.145,98.892,27.92318534]
[1646089226873,11.56930401,99.145,98.9,5.0]
[1646089227086,3.92199,99.147,98.9,5.0]
[1646089227286,18.4056447,99.161,98.91,5.0]
[1646089227487,18.4056447,99.161,98.911,97.7]
[1646089227687,5.0,99.178,98.911,97.7]
[1646089227886,18.4056447,99.161,98.911,100.44678921]
[1646089228087,18.4056447,99.161,98.912,49.04948921]
[1646089228486,5.0,99.148,98.913,2.74678921]
[1646089228689,5.0,99.128,98.912,46.3027]
[1646089229291,17.84161688,99.127,98.912,46.3027]
[1646089229488,3.92199,99.126,98.912,46.3027]
[1646089229689,5.0,99.098,98.891,22.5322]
[1646089229889,5.0,99.088,98.891,22.5322]
[1646089230092,5.0,99.068,98.82,5.0]
[1646089230388,5.0,99.028,98.76,5.0]
[1646089230590,3.92199,99.067,98.76,5.0]
[1646089230591,5.0,99.018,98.76,5.0]
[1646089231089,5.0,98.988,98.754,226.7589]
[1646089231290,5.0,98.968,98.754,226.7589]
[1646089231489,5.0,98.958,98.754,226.7589]
[1646089231693,11.74263735,98.971,98.754,226.7589]
[1646089231892,5.0,98.968,98.754,226.7589]
[1646089232089,3.92199,98.987,98.754,226.7589]
[1646089232489,5.0,98.968,98.754,226.7589]
[1646089232792,5.0,98.988,98.754,226.7589]
[1646089232989,13.1357068,99.043,98.754,226.7589]
[1646089232990,5.0,99.028,98.807,25.17639613]
[1646089233194,5.0,99.058,98.807,25.17639613]
[1646089233589,5.0,99.078,98.842,2.74678921]
[1646089233791,5.0,99.058,98.808,49.92138921]
[1646089234192,5.0,99.058,98.809,2.74678921]
[1646089234593,17.84161688,99.05,98.809,2.74678921]
[1646089234793,5.0,99.058,98.809,2.74678921]
[1646089235493,5.0,99.058,98.81,0.53]
[1646089235694,17.84161688,99.057,98.809,2.74678921]
[1646089235896,17.84161688,99.057,98.822,4.043]
[1646089236093,11.74263735,99.056,98.822,4.043]
[1646089236294,1.39306945,99.045,98.822,4.043]
[1646089236495,1.39306945,99.043,98.824,4.041]
[1646089236694,19.23468633,99.044,98.824,4.041]
[1646089236896,17.84161688,99.044,98.824,4.041]
[1646089237095,1.39306945,99.035,98.861,4.041]
[1646089237295,55.0,99.034,98.798,2.74678921]
[1646089237495,1.39306945,99.024,98.754,99.7723]
[1646089237695,5.0,98.988,98.69,5.0]
[1646089237901,1.39306945,98.966,98.69,5.0]
[1646089238098,1.39306945,98.931,98.64,5.0]
[1646089238300,1.39306945,98.913,98.64,5.0]
[1646089238496,1.39306945,98.904,98.59,5.0]
[1646089238701,3.92199,98.912,98.62,5.0]
[1646089238702,1.39306945,98.893,98.62,5.0]
[1646089238905,3.92199,98.87,98.63,5.0]
[1646089239099,3.92199,98.87,98.61,5.0]
[1646089239399,1.39306945,98.864,98.57,10.26657105]
[1646089239596,1.39306945,98.864,98.567,218.7005]
[1646089239597,1.39306945,98.857,98.58,5.0]
[1646089239796,3.92199,98.847,98.58,5.0]
[1646089239996,5.0,98.827,98.567,145.1731]
[1646089240199,3.92199,98.826,98.567,145.1731]
[1646089240399,4.997,98.787,98.567,145.1731]
[1646089240597,5.0,98.777,98.567,145.1731]
[1646089240900,15.66603735,98.79,98.567,145.1731]
[1646089241097,1.39306945,98.849,98.567,145.1731]
[1646089241098,15.66603735,98.776,98.567,145.1731]
[1646089241299,5.0,98.747,98.567,145.1731]
[1646089241598,5.0,98.767,98.567,145.1731]
[1646089241798,13.13494318,98.746,98.567,70.0067]
[1646089242001,5.0,98.747,98.523,72.9697]
[1646089242199,5.0,98.737,98.523,72.9697]
[1646089242601,17.7511103,98.746,98.523,72.9697]
[1646089242801,17.7511103,98.736,98.523,72.9697]
[1646089243203,3.81,98.747,98.523,72.9697]
[1646089243204,12.33055712,98.746,98.523,72.9697]
[1646089243703,12.1945649,98.736,98.523,72.9697]
[1646089243902,5.0,98.727,98.523,72.9697]
[1646089244106,5.0,98.687,98.508,23.1499]
[1646089244404,5.0,98.677,98.506,23.14]
[1646089244607,4.5,98.677,98.506,23.14]
[1646089244806,29.81395407,98.686,98.506,23.14]
[1646089245007,5.42055318,98.702,98.506,23.14]
[1646089245507,12.35167369,98.726,98.506,23.14]
[1646089245708,12.1945649,98.735,98.506,23.14]
[1646089245919,5.0,98.757,98.506,23.14]
[1646089246109,24.05269668,98.801,98.531,0.56]
[1646089246306,1.75357842,98.746,98.541,0.56]
[1646089246707,24.05269668,98.801,98.541,98.26]
[1646089246905,24.05269668,98.801,98.551,0.56]
[1646089247709,24.05269668,98.801,98.551,98.26]
[1646089248108,24.05269668,98.801,98.56,0.56]
[1646089248321,24.05269668,98.801,98.56,5.56]
[1646089248817,24.05269668,98.801,98.561,71.9137]
[1646089249718,5.0,98.797,98.561,71.9137]
[1646089249917,15.92460489,98.8,98.57,5.56]
[1646089250117,5.0,98.817,98.562,2.74678921]
[1646089250318,14.27259815,98.799,98.561,71.9137]
[1646089251119,5.0,98.797,98.561,71.9137]
[1646089251518,5.0,98.797,98.622,4.05]
[1646089251718,14.27259815,98.796,98.622,4.05]
[1646089251917,14.27259815,98.796,98.561,71.9137]
[1646089252117,12.00127715,98.796,98.561,71.9137]
[1646089252321,20.92460489,98.817,98.562,100.44678921]
[1646089252519,10.90006939,98.809,98.58,5.0]
[1646089252720,10.90006939,98.809,98.59,0.56]
[1646089253119,9.78009853,98.827,98.61,5.0]
[1646089253319,1.75357842,98.817,98.61,5.0]
[1646089253525,1.75357842,98.817,98.62,5.0]
[1646089253820,1.75357842,98.817,98.611,97.7]
[1646089253821,1.75357842,98.855,98.65,5.0]
[1646089254019,1.75357842,98.855,98.65,5.56]
[1646089254221,1.75357842,98.855,98.651,48.52798921]
[1646089254824,37.73884312,98.854,98.651,45.7812]
[1646089255221,28.08630724,98.853,98.651,45.7812]
[1646089255423,39.57908821,98.853,98.651,45.7812]
[1646089255624,27.99964057,98.852,98.651,45.7812]
[1646089255823,37.82550979,98.852,98.651,45.7812]
[1646089256023,20.01401644,98.851,98.651,45.7812]
[1646089256224,29.75321899,98.851,98.651,45.7812]
[1646089256423,37.82550979,98.85,98.651,45.7812]
[1646089256624,39.57908821,98.85,98.651,45.7812]
[1646089256824,27.99964057,98.849,98.651,45.7812]
[1646089257024,37.82550979,98.849,98.651,45.7812]
[1646089257224,27.99964057,98.848,98.651,45.7812]
[1646089257427,37.82550979,98.848,98.651,45.7812]
[1646089257626,27.99964057,98.847,98.651,45.7812]
[1646089257826,37.82550979,98.847,98.651,45.7812]
[1646089258025,27.99964057,98.846,98.651,45.7812]
[1646089258324,27.99964057,98.845,98.651,45.7812]
[1646089258726,15.92460489,98.844,98.651,45.7812]
[1646089258927,28.03606319,98.844,98.651,45.7812]
[1646089259331,15.92460489,98.843,98.623,2.74678921]
[1646089259531,3.92199,98.829,98.612,24.8009]
[1646089259930,5.0,98.787,98.53,5.0]
[1646089260135,5.0,98.767,98.5,23.0908]
[1646089260328,15.92460489,98.828,98.5,23.0908]
[1646089260329,5.0,98.757,98.5,23.0908]
[1646089260528,1.39306945,98.795,98.5,23.0908]
[1646089260529,3.92199,98.756,98.5,23.0908]
[1646089260751,19.84659489,98.756,98.5,23.0908]
[1646089260949,5.0,98.737,98.5,23.0908]
[1646089261155,5.0,98.727,98.5,23.0908]
[1646089261350,5.0,98.717,98.5,23.0908]
[1646089261951,50.67354174,98.716,98.5,23.0908]
[1646089262149,26.3709622,98.716,98.5,23.0908]
[1646089262351,15.92460489,98.715,98.561,4.049]
[1646089262553,40.22718443,98.715,98.561,4.049]
[1646089262750,40.22718443,98.715,98.5,23.0908]
[1646089262751,1.75357842,98.714,98.596,4.049]
[1646089262951,41.00899519,98.714,98.596,4.049]
[1646089263152,5.0,98.707,98.596,4.049]
[1646089263551,39.25541677,98.706,98.545,4.051]
[1646089263752,42.00220598,98.706,98.545,4.051]
[1646089263952,48.94634408,98.705,98.512,4.051]
[1646089264154,5.0,98.677,98.512,4.051]
[1646089264653,39.25541677,98.676,98.522,4.051]
[1646089264852,16.58544517,98.676,98.513,2.74678921]
[1646089265054,5.0,98.737,98.513,2.74678921]
[1646089265251,4.054,98.784,98.501,0.56]
[1646089265451,23.20894846,98.765,98.501,8.30678921]